{"text_format":"1","workbook":"xlsx","n_sheets":4,"sheets":["Teilnehmer","Schlussbericht","Bild 1","Bild 2"],"not_rendered":{"charts":2,"images":0,"macros":1,"external_links":0,"defined_names":0,"comments":1,"pivot_tables":0},"unopened":[],"bounds":{"document_bytes":16777216,"sheet_cells":100000,"rows_first":2000,"rows_last":500,"rows_between":2000,"halvings":0,"cell_chars":16384,"cell_head_chars":4096},"cells_cut":0,"cells_raw":0,"read":"whole","date_system":"1900"}

{"sheet":"Teilnehmer","index":0,"n_rows":31,"n_cols":7,"rows_kept":31,"cut":false,"hidden":false,"merged":[[4,0,4,1],[3,0,3,1],[3,3,3,4],[1,2,1,5]]}
[]
["Vereinsname",null,"Musterverein in Musterhausen"]
[]
["m.muster@musterenia.ch",null,null,"+41 012 345 67 89"]
["Teilnehmer Feldschiessen 2019",null,1000]
["Datum","Anlass","Teilnehmer  2019","Teilnehmer 2020","Zu/Abnahme %"]
[44053,{"$f":"IF(Tabelle1[[#This Row],[Datum]],\"Feldschiessen\",\"\")","v":"Feldschiessen"},null,1200]
[44054,{"$f":"IF(Tabelle1[[#This Row],[Datum]],\"Feldschiessen\",\"\")","v":"Feldschiessen"},null,300]
[44055,{"$f":"IF(Tabelle1[[#This Row],[Datum]],\"Feldschiessen\",\"\")","v":"Feldschiessen"},null,50]
[null,{"$f":"IF(Tabelle1[[#This Row],[Datum]],\"Feldschiessen\",\"\")","v":""},null,20]
[44062,{"$f":"IF(Tabelle1[[#This Row],[Datum]],\"Feldschiessen\",\"\")","v":"Feldschiessen"},null,100]
[null,{"$f":"IF(Tabelle1[[#This Row],[Datum]],\"Feldschiessen\",\"\")","v":""}]
[null,{"$f":"IF(Tabelle1[[#This Row],[Datum]],\"Feldschiessen\",\"\")","v":""}]
[null,{"$f":"IF(Tabelle1[[#This Row],[Datum]],\"Feldschiessen\",\"\")","v":""}]
[null,{"$f":"IF(Tabelle1[[#This Row],[Datum]],\"Feldschiessen\",\"\")","v":""}]
[null,{"$f":"IF(Tabelle1[[#This Row],[Datum]],\"Feldschiessen\",\"\")","v":""}]
[null,{"$f":"IF(Tabelle1[[#This Row],[Datum]],\"Feldschiessen\",\"\")","v":""}]
[null,{"$f":"IF(Tabelle1[[#This Row],[Datum]],\"Feldschiessen\",\"\")","v":""}]
[null,{"$f":"IF(Tabelle1[[#This Row],[Datum]],\"Feldschiessen\",\"\")","v":""}]
[null,null,{"$f":"C5","v":1000},{"$f":"SUBTOTAL(9,Tabelle1[Teilnehmer 2020])","v":1670},{"$f":"Tabelle1[[#Totals],[Teilnehmer 2020]]/Tabelle1[[#Totals],[Teilnehmer  2019]]-1","v":0.66999999999999993}]
[]
[]
["Anzahl Tage",null,null,"Anzahl Schützen","Jahr 2019","Jahr 2020","Verhältnis Alle zu NLZ"]
["Feldschiessen",{"$f":"COUNTIF(Tabelle1[Anlass],$A$24)","v":4},null,"Alle Schützen",{"$f":"Tabelle1[[#Totals],[Teilnehmer  2019]]","v":1000},{"$f":"Tabelle1[[#Totals],[Teilnehmer 2020]]","v":1670}]
[null,null,null,"Nichtlizenziert (NLZ)",null,500,{"$f":"F25/F24","v":0.29940119760479039}]
[]
[]
[]
["Legende"]
["Alle gelben Felder auszufüllen"]
["Rote Ecken in den gelben Zellen sind Angaben"]

{"sheet":"Schlussbericht","index":1,"n_rows":2,"n_cols":2,"rows_kept":2,"cut":false,"hidden":false,"merged":[[1,1,27,6]]}
[]
[null,"Geben Sie hier den gewünschten Text ein.\n\nDer Text kann mit der Tastenkombination ALT+ENTER eine neue Zeile erstellen.\n\nDer Text kann auch aus einer Worddatei kopiert und eingefügt werden."]

{"sheet":"Bild 1","index":2,"n_rows":0,"n_cols":0,"rows_kept":0,"cut":false,"hidden":false,"merged":[]}

{"sheet":"Bild 2","index":3,"n_rows":0,"n_cols":0,"rows_kept":0,"cut":false,"hidden":false,"merged":[]}